Department Family,Entity,Date,Expense Type,Expense Area,Supplier,Transaction Number,AP Amount
Department of Health,NHS Rotherham CCG,12/31/2020,Prescribing,MEDICINES MANAGEMENT - CLINICAL,AMCARE LTD,35050972,"88,702.76"
Department of Health,NHS Rotherham CCG,12/31/2020,Hcare Srv Rec Fdtn Trust-Contract Baseline,ACUTE COMMISSIONING,BARNSLEY HOSPITAL NHS FOUNDATION TRUST,34819739,"177,735.00"
Department of Health,NHS Rotherham CCG,12/31/2020,C&M-APMS DES Extended Hours Access,PRC DELEGATED CO-COMMISSIONING,CONNECT HEALTHCARE ROTHERHAM LTD,34794730,"25,144.60"
Department of Health,NHS Rotherham CCG,12/31/2020,C&M-APMS PCN DES Clinical Director,PRC DELEGATED CO-COMMISSIONING,CONNECT HEALTHCARE ROTHERHAM LTD,34794730,"12,520.27"
Department of Health,NHS Rotherham CCG,12/31/2020,C&M-APMS PCN DES PCN support,LOCAL ENHANCED SERVICES,CONNECT HEALTHCARE ROTHERHAM LTD,34794730,"26,036.25"
Department of Health,NHS Rotherham CCG,12/31/2020,C&M-APMS PCN DES Clin Pharmacist,PRC DELEGATED CO-COMMISSIONING,CONNECT HEALTHCARE ROTHERHAM LTD,34794731,"48,597.05"
Department of Health,NHS Rotherham CCG,12/31/2020,C&M-PCN DES PHARMACY TECHNICIANS,PRC DELEGATED CO-COMMISSIONING,CONNECT HEALTHCARE ROTHERHAM LTD,34794731,"12,687.03"
Department of Health,NHS Rotherham CCG,12/31/2020,C&M- PCN DES CARE COORDINATOR,PRC DELEGATED CO-COMMISSIONING,CONNECT HEALTHCARE ROTHERHAM LTD,34794734,"49,286.70"
Department of Health,NHS Rotherham CCG,12/31/2020,C&M-APMS LES Extended Hours,GP FORWARD VIEW,CONNECT HEALTHCARE ROTHERHAM LTD,35119827,"56,813.00"
Department of Health,NHS Rotherham CCG,12/31/2020,C&M-APMS LES Extended Hours,GP FORWARD VIEW,CONNECT HEALTHCARE ROTHERHAM LTD,35119934,"-56,813.00"
Department of Health,NHS Rotherham CCG,12/31/2020,Hlthcre-Foundation Trsts,LEARNING DIFFICULTIES,CUMBRIA NORTHUMBERLAND TYNE AND WEAR NHS FOUNDATION TRUST,34819740,"67,050.00"
Department of Health,NHS Rotherham CCG,12/31/2020,Hcare Srv Rec Fdtn Trust-Contract Baseline,ACUTE COMMISSIONING,DONCASTER AND BASSETLAW HOSPITALS NHS FOUNDATION TRUST,34819741,"842,299.00"
Department of Health,NHS Rotherham CCG,12/31/2020,C&M-PMS Contract Value,PRC DELEGATED CO-COMMISSIONING,NHS ROTHERHAM CCG GP PRACTICE,34893420,"39,985.49"
Department of Health,NHS Rotherham CCG,12/31/2020,C&M-PMS Out of Hours Opt Outs,PRC DELEGATED CO-COMMISSIONING,NHS ROTHERHAM CCG GP PRACTICE,34893420,0.14
Department of Health,NHS Rotherham CCG,12/31/2020,C&M-PMS PCN DES Participation,PRC DELEGATED CO-COMMISSIONING,NHS ROTHERHAM CCG GP PRACTICE,34893420,"1,457.04"
Department of Health,NHS Rotherham CCG,12/31/2020,C&M-PMS Prem Healthcentre Rent,PRC DELEGATED CO-COMMISSIONING,NHS ROTHERHAM CCG GP PRACTICE,34893420,991.45
Department of Health,NHS Rotherham CCG,12/31/2020,C&M-PMS Prem Notional Rent,PRC DELEGATED CO-COMMISSIONING,NHS ROTHERHAM CCG GP PRACTICE,34893420,"2,833.33"
Department of Health,NHS Rotherham CCG,12/31/2020,C&M-PMS Prem Rates,PRC DELEGATED CO-COMMISSIONING,NHS ROTHERHAM CCG GP PRACTICE,34893420,774
Department of Health,NHS Rotherham CCG,12/31/2020,C&M-PMS Prem Water Rates,PRC DELEGATED CO-COMMISSIONING,NHS ROTHERHAM CCG GP PRACTICE,34893420,185.37
Department of Health,NHS Rotherham CCG,12/31/2020,C&M-PMS QOF Aspiration,PRC DELEGATED CO-COMMISSIONING,NHS ROTHERHAM CCG GP PRACTICE,34893420,"3,184.66"
Department of Health,NHS Rotherham CCG,12/31/2020,C&M-PMS Contract Value,PRC DELEGATED CO-COMMISSIONING,NHS ROTHERHAM CCG GP PRACTICE,34893418,"101,892.93"
Department of Health,NHS Rotherham CCG,12/31/2020,C&M-PMS Out of Hours Opt Outs,PRC DELEGATED CO-COMMISSIONING,NHS ROTHERHAM CCG GP PRACTICE,34893418,106.44
Department of Health,NHS Rotherham CCG,12/31/2020,C&M-PMS PCN DES Participation,PRC DELEGATED CO-COMMISSIONING,NHS ROTHERHAM CCG GP PRACTICE,34893418,"3,804.38"
Department of Health,NHS Rotherham CCG,12/31/2020,C&M-PMS PCO Other,PRC DELEGATED CO-COMMISSIONING,NHS ROTHERHAM CCG GP PRACTICE,34893418,718.8
Department of Health,NHS Rotherham CCG,12/31/2020,C&M-PMS Prem Notional Rent,PRC DELEGATED CO-COMMISSIONING,NHS ROTHERHAM CCG GP PRACTICE,34893418,"7,331.33"
Department of Health,NHS Rotherham CCG,12/31/2020,C&M-PMS Prem Rates,PRC DELEGATED CO-COMMISSIONING,NHS ROTHERHAM CCG GP PRACTICE,34893418,"2,532.00"
Department of Health,NHS Rotherham CCG,12/31/2020,C&M-PMS QOF Aspiration,PRC DELEGATED CO-COMMISSIONING,NHS ROTHERHAM CCG GP PRACTICE,34893418,"10,477.63"
Department of Health,NHS Rotherham CCG,12/31/2020,C&M-PMS Cost of Drugs -Prescribing,LOCAL ENHANCED SERVICES,NHS ROTHERHAM CCG GP PRACTICE,35097793,"26,108.13"
Department of Health,NHS Rotherham CCG,12/31/2020,C&M-PMS Prof fees Prescribing,PRC DELEGATED CO-COMMISSIONING,NHS ROTHERHAM CCG GP PRACTICE,35097793,"6,477.11"
Department of Health,NHS Rotherham CCG,12/31/2020,C&M-PMS Contract Value,PRC DELEGATED CO-COMMISSIONING,NHS ROTHERHAM CCG GP PRACTICE,34893422,"94,351.47"
Department of Health,NHS Rotherham CCG,12/31/2020,C&M-PMS Out of Hours Opt Outs,PRC DELEGATED CO-COMMISSIONING,NHS ROTHERHAM CCG GP PRACTICE,34893422,54.59
Department of Health,NHS Rotherham CCG,12/31/2020,C&M-PMS PCN DES Participation,PRC DELEGATED CO-COMMISSIONING,NHS ROTHERHAM CCG GP PRACTICE,34893422,"3,532.95"
Department of Health,NHS Rotherham CCG,12/31/2020,C&M-PMS Prem Rates,PRC DELEGATED CO-COMMISSIONING,NHS ROTHERHAM CCG GP PRACTICE,34893422,948
Department of Health,NHS Rotherham CCG,12/31/2020,C&M-PMS QOF Aspiration,PRC DELEGATED CO-COMMISSIONING,NHS ROTHERHAM CCG GP PRACTICE,34893422,"8,761.49"
Department of Health,NHS Rotherham CCG,12/31/2020,C&M-GMS DES Learn Dsblty Hlth Chk,PRC DELEGATED CO-COMMISSIONING,NHS ROTHERHAM CCG GP PRACTICE,35081557,"1,540.00"
Department of Health,NHS Rotherham CCG,12/31/2020,C&M-GMS Global Sum,PRC DELEGATED CO-COMMISSIONING,NHS ROTHERHAM CCG GP PRACTICE,35081557,"47,809.05"
Department of Health,NHS Rotherham CCG,12/31/2020,C&M-GMS PCN DES Participation,PRC DELEGATED CO-COMMISSIONING,NHS ROTHERHAM CCG GP PRACTICE,35081557,"1,879.46"
Department of Health,NHS Rotherham CCG,12/31/2020,C&M-GMS Prem Notional Rent,PRC DELEGATED CO-COMMISSIONING,NHS ROTHERHAM CCG GP PRACTICE,35081557,"3,166.67"
Department of Health,NHS Rotherham CCG,12/31/2020,C&M-GMS Prem Rates,PRC DELEGATED CO-COMMISSIONING,NHS ROTHERHAM CCG GP PRACTICE,35081557,415
Department of Health,NHS Rotherham CCG,12/31/2020,C&M-GMS Prem Water Rates,PRC DELEGATED CO-COMMISSIONING,NHS ROTHERHAM CCG GP PRACTICE,35081557,84.83
Department of Health,NHS Rotherham CCG,12/31/2020,C&M-GMS QOF Aspiration,PRC DELEGATED CO-COMMISSIONING,NHS ROTHERHAM CCG GP PRACTICE,35081557,"5,285.22"
Department of Health,NHS Rotherham CCG,12/31/2020,C&M-PMS Contract Value,PRC DELEGATED CO-COMMISSIONING,NHS ROTHERHAM CCG GP PRACTICE,34893428,"112,518.77"
Department of Health,NHS Rotherham CCG,12/31/2020,C&M-PMS Out of Hours Opt Outs,PRC DELEGATED CO-COMMISSIONING,NHS ROTHERHAM CCG GP PRACTICE,34893428,179.38
Department of Health,NHS Rotherham CCG,12/31/2020,C&M-PMS PCN DES Participation,PRC DELEGATED CO-COMMISSIONING,NHS ROTHERHAM CCG GP PRACTICE,34893428,"4,211.58"
Department of Health,NHS Rotherham CCG,12/31/2020,C&M-PMS PCO Locum Sickness,PRC DELEGATED CO-COMMISSIONING,NHS ROTHERHAM CCG GP PRACTICE,34893428,"19,631.72"
Department of Health,NHS Rotherham CCG,12/31/2020,C&M-PMS Prem Actual Rent,PRC DELEGATED CO-COMMISSIONING,NHS ROTHERHAM CCG GP PRACTICE,34893428,"49,393.86"
Department of Health,NHS Rotherham CCG,12/31/2020,C&M-PMS Prem Healthcentre Rent,PRC DELEGATED CO-COMMISSIONING,NHS ROTHERHAM CCG GP PRACTICE,34893428,"1,789.21"
Department of Health,NHS Rotherham CCG,12/31/2020,C&M-PMS Prem Water Rates,PRC DELEGATED CO-COMMISSIONING,NHS ROTHERHAM CCG GP PRACTICE,34893428,"1,324.69"
Department of Health,NHS Rotherham CCG,12/31/2020,C&M-PMS QOF Aspiration,PRC DELEGATED CO-COMMISSIONING,NHS ROTHERHAM CCG GP PRACTICE,34893428,"9,297.19"
Department of Health,NHS Rotherham CCG,12/31/2020,C&M-GMS Global Sum,PRC DELEGATED CO-COMMISSIONING,NHS ROTHERHAM CCG GP PRACTICE,35081559,"92,242.66"
Department of Health,NHS Rotherham CCG,12/31/2020,C&M-GMS PCN DES Participation,PRC DELEGATED CO-COMMISSIONING,NHS ROTHERHAM CCG GP PRACTICE,35081559,"3,653.73"
Department of Health,NHS Rotherham CCG,12/31/2020,C&M-GMS PCO Locum Sickness,PRC DELEGATED CO-COMMISSIONING,NHS ROTHERHAM CCG GP PRACTICE,35081559,"4,378.80"
Department of Health,NHS Rotherham CCG,12/31/2020,C&M-GMS Prem Notional Rent,PRC DELEGATED CO-COMMISSIONING,NHS ROTHERHAM CCG GP PRACTICE,35081559,"7,413.75"
Department of Health,NHS Rotherham CCG,12/31/2020,C&M-GMS Prem Rates,PRC DELEGATED CO-COMMISSIONING,NHS ROTHERHAM CCG GP PRACTICE,35081559,"2,495.00"
Department of Health,NHS Rotherham CCG,12/31/2020,C&M-GMS QOF Aspiration,PRC DELEGATED CO-COMMISSIONING,NHS ROTHERHAM CCG GP PRACTICE,35081559,"10,106.14"
Department of Health,NHS Rotherham CCG,12/31/2020,ME - GMS GP Prior Year ERs,PRC DELEGATED CO-COMMISSIONING,NHS ROTHERHAM CCG GP PRACTICE,35081559,"2,756.65"
Department of Health,NHS Rotherham CCG,12/31/2020,ME-GMS GP Prior Year AVCs,PRC DELEGATED CO-COMMISSIONING,NHS ROTHERHAM CCG GP PRACTICE,35081559,627.26
Department of Health,NHS Rotherham CCG,12/31/2020,ME-GMS GP Prior Year EEs,PRC DELEGATED CO-COMMISSIONING,NHS ROTHERHAM CCG GP PRACTICE,35081559,"1,782.81"
Department of Health,NHS Rotherham CCG,12/31/2020,C&M-PMS Contract Value,PRC DELEGATED CO-COMMISSIONING,NHS ROTHERHAM CCG GP PRACTICE,34893425,-191.44
Department of Health,NHS Rotherham CCG,12/31/2020,C&M-PMS GP Statutory Levy,PRC DELEGATED CO-COMMISSIONING,NHS ROTHERHAM CCG GP PRACTICE,34893425,-586.56
Department of Health,NHS Rotherham CCG,12/31/2020,C&M-PMS Out of Hours Opt Outs,PRC DELEGATED CO-COMMISSIONING,NHS ROTHERHAM CCG GP PRACTICE,34893425,"-8,329.09"
Department of Health,NHS Rotherham CCG,12/31/2020,C&M-PMS PCN DES Participation,PRC DELEGATED CO-COMMISSIONING,NHS ROTHERHAM CCG GP PRACTICE,34893425,"-3,284.92"
Department of Health,NHS Rotherham CCG,12/31/2020,C&M-PMS Prem Rates,PRC DELEGATED CO-COMMISSIONING,NHS ROTHERHAM CCG GP PRACTICE,34893425,-478
Department of Health,NHS Rotherham CCG,12/31/2020,C&M-PMS Prem Water Rates,PRC DELEGATED CO-COMMISSIONING,NHS ROTHERHAM CCG GP PRACTICE,34893425,-169
Department of Health,NHS Rotherham CCG,12/31/2020,C&M-PMS Voluntary Levy,PRC DELEGATED CO-COMMISSIONING,NHS ROTHERHAM CCG GP PRACTICE,34893425,-86.26
Department of Health,NHS Rotherham CCG,12/31/2020,ME - PMS TPS Added Years Adj EEs,PRC DELEGATED CO-COMMISSIONING,NHS ROTHERHAM CCG GP PRACTICE,34893425,-540
Department of Health,NHS Rotherham CCG,12/31/2020,ME-PMS GP Pension EEs-PMS,PRC DELEGATED CO-COMMISSIONING,NHS ROTHERHAM CCG GP PRACTICE,34893425,"-12,721.75"
Department of Health,NHS Rotherham CCG,12/31/2020,ME-PMS GP Pension ERs Adjs - PMS,PRC DELEGATED CO-COMMISSIONING,NHS ROTHERHAM CCG GP PRACTICE,34893425,"-13,481.24"
Department of Health,NHS Rotherham CCG,12/31/2020,C&M-PMS Contract Value,PRC DELEGATED CO-COMMISSIONING,NHS ROTHERHAM CCG GP PRACTICE,34893426,"174,807.64"
Department of Health,NHS Rotherham CCG,12/31/2020,C&M-PMS Out of Hours Opt Outs,PRC DELEGATED CO-COMMISSIONING,NHS ROTHERHAM CCG GP PRACTICE,34893426,9.14
Department of Health,NHS Rotherham CCG,12/31/2020,C&M-PMS PCN DES Participation,PRC DELEGATED CO-COMMISSIONING,NHS ROTHERHAM CCG GP PRACTICE,34893426,"6,575.43"
Department of Health,NHS Rotherham CCG,12/31/2020,C&M-PMS Prem Actual Rent,PRC DELEGATED CO-COMMISSIONING,NHS ROTHERHAM CCG GP PRACTICE,34893426,"12,725.00"
Department of Health,NHS Rotherham CCG,12/31/2020,C&M-PMS Prem Notional Rent,PRC DELEGATED CO-COMMISSIONING,NHS ROTHERHAM CCG GP PRACTICE,34893426,"7,477.08"
Department of Health,NHS Rotherham CCG,12/31/2020,C&M-PMS Prem Rates,PRC DELEGATED CO-COMMISSIONING,NHS ROTHERHAM CCG GP PRACTICE,34893426,"3,447.00"
Department of Health,NHS Rotherham CCG,12/31/2020,C&M-PMS Prem Water Rates,PRC DELEGATED CO-COMMISSIONING,NHS ROTHERHAM CCG GP PRACTICE,34893426,13.52
Department of Health,NHS Rotherham CCG,12/31/2020,C&M-PMS QOF Aspiration,PRC DELEGATED CO-COMMISSIONING,NHS ROTHERHAM CCG GP PRACTICE,34893426,"19,637.46"
Department of Health,NHS Rotherham CCG,12/31/2020,ME-PMS GP Prior Year EEs,PRC DELEGATED CO-COMMISSIONING,NHS ROTHERHAM CCG GP PRACTICE,34893426,442.8
Department of Health,NHS Rotherham CCG,12/31/2020,C&M-PMS Cost of Drugs -Dispensing,LOCAL ENHANCED SERVICES,NHS ROTHERHAM CCG GP PRACTICE,35097799,"-59,329.95"
Department of Health,NHS Rotherham CCG,12/31/2020,C&M-PMS Prsc Chrgs Cll&Rmttd by GPs,PRC DELEGATED CO-COMMISSIONING,NHS ROTHERHAM CCG GP PRACTICE,35097799,-622.2
Department of Health,NHS Rotherham CCG,12/31/2020,C&M-PMS Cost of Drugs -Dispensing,LOCAL ENHANCED SERVICES,NHS ROTHERHAM CCG GP PRACTICE,35097800,"104,268.66"
Department of Health,NHS Rotherham CCG,12/31/2020,C&M-PMS Prof fees Dispensing,PRC DELEGATED CO-COMMISSIONING,NHS ROTHERHAM CCG GP PRACTICE,35097800,"20,738.04"
Department of Health,NHS Rotherham CCG,12/31/2020,C&M-PMS Prsc Chrgs Cll&Rmttd by GPs,LOCAL ENHANCED SERVICES,NHS ROTHERHAM CCG GP PRACTICE,35097800,622.2
Department of Health,NHS Rotherham CCG,12/31/2020,C&M-PMS Contract Value,PRC DELEGATED CO-COMMISSIONING,NHS ROTHERHAM CCG GP PRACTICE,34893423,-442.7
Department of Health,NHS Rotherham CCG,12/31/2020,C&M-PMS DES Extended Hours Access,PRC DELEGATED CO-COMMISSIONING,NHS ROTHERHAM CCG GP PRACTICE,34893423,"-13,755.48"
Department of Health,NHS Rotherham CCG,12/31/2020,C&M-PMS GP Statutory Levy,PRC DELEGATED CO-COMMISSIONING,NHS ROTHERHAM CCG GP PRACTICE,34893423,-325.92
Department of Health,NHS Rotherham CCG,12/31/2020,C&M-PMS PCN DES Clinical Director,PRC DELEGATED CO-COMMISSIONING,NHS ROTHERHAM CCG GP PRACTICE,34893423,"-6,738.80"
Department of Health,NHS Rotherham CCG,12/31/2020,C&M-PMS PCN DES PCN support,LOCAL ENHANCED SERVICES,NHS ROTHERHAM CCG GP PRACTICE,34893423,"-14,220.08"
Department of Health,NHS Rotherham CCG,12/31/2020,C&M-PMS PCN DES Participation,PRC DELEGATED CO-COMMISSIONING,NHS ROTHERHAM CCG GP PRACTICE,34893423,"-1,834.73"
Department of Health,NHS Rotherham CCG,12/31/2020,C&M-PMS Voluntary Levy,PRC DELEGATED CO-COMMISSIONING,NHS ROTHERHAM CCG GP PRACTICE,34893423,-47.93
Department of Health,NHS Rotherham CCG,12/31/2020,ME-PMS GP Pension EEs-PMS,PRC DELEGATED CO-COMMISSIONING,NHS ROTHERHAM CCG GP PRACTICE,34893423,"-6,738.41"
Department of Health,NHS Rotherham CCG,12/31/2020,ME-PMS GP Pension ERs Adjs - PMS,PRC DELEGATED CO-COMMISSIONING,NHS ROTHERHAM CCG GP PRACTICE,34893423,"-7,020.07"
Department of Health,NHS Rotherham CCG,12/31/2020,C&M-PMS Contract Value,PRC DELEGATED CO-COMMISSIONING,NHS ROTHERHAM CCG GP PRACTICE,34893424,"98,973.40"
Department of Health,NHS Rotherham CCG,12/31/2020,C&M-PMS DES Extended Hours Access,PRC DELEGATED CO-COMMISSIONING,NHS ROTHERHAM CCG GP PRACTICE,34893424,"13,755.48"
Department of Health,NHS Rotherham CCG,12/31/2020,C&M-PMS PCN DES Clinical Director,PRC DELEGATED CO-COMMISSIONING,NHS ROTHERHAM CCG GP PRACTICE,34893424,"6,738.80"
Department of Health,NHS Rotherham CCG,12/31/2020,C&M-PMS PCN DES PCN support,LOCAL ENHANCED SERVICES,NHS ROTHERHAM CCG GP PRACTICE,34893424,"14,220.08"
Department of Health,NHS Rotherham CCG,12/31/2020,C&M-PMS PCN DES Participation,PRC DELEGATED CO-COMMISSIONING,NHS ROTHERHAM CCG GP PRACTICE,34893424,"3,672.58"
Department of Health,NHS Rotherham CCG,12/31/2020,C&M-PMS Prem Notional Rent,PRC DELEGATED CO-COMMISSIONING,NHS ROTHERHAM CCG GP PRACTICE,34893424,"15,869.83"
Department of Health,NHS Rotherham CCG,12/31/2020,C&M-PMS Prem Rates,PRC DELEGATED CO-COMMISSIONING,NHS ROTHERHAM CCG GP PRACTICE,34893424,"3,195.00"
Department of Health,NHS Rotherham CCG,12/31/2020,C&M-PMS QOF Aspiration,PRC DELEGATED CO-COMMISSIONING,NHS ROTHERHAM CCG GP PRACTICE,34893424,"10,845.57"
Department of Health,NHS Rotherham CCG,12/31/2020,C&M-PMS Cost of Drugs -Dispensing,LOCAL ENHANCED SERVICES,NHS ROTHERHAM CCG GP PRACTICE,35097797,"-38,174.55"
Department of Health,NHS Rotherham CCG,12/31/2020,C&M-PMS Prsc Chrgs Cll&Rmttd by GPs,PRC DELEGATED CO-COMMISSIONING,NHS ROTHERHAM CCG GP PRACTICE,35097797,"-1,326.75"
Department of Health,NHS Rotherham CCG,12/31/2020,C&M-PMS Cost of Drugs -Dispensing,LOCAL ENHANCED SERVICES,NHS ROTHERHAM CCG GP PRACTICE,35097798,"72,869.68"
Department of Health,NHS Rotherham CCG,12/31/2020,C&M-PMS Prof fees Dispensing,PRC DELEGATED CO-COMMISSIONING,NHS ROTHERHAM CCG GP PRACTICE,35097798,"12,689.42"
Department of Health,NHS Rotherham CCG,12/31/2020,C&M-PMS Prsc Chrgs Cll&Rmttd by GPs,LOCAL ENHANCED SERVICES,NHS ROTHERHAM CCG GP PRACTICE,35097798,"1,326.75"
Department of Health,NHS Rotherham CCG,12/31/2020,C&M-GMS Global Sum,PRC DELEGATED CO-COMMISSIONING,NHS ROTHERHAM CCG GP PRACTICE,35081561,"94,757.12"
Department of Health,NHS Rotherham CCG,12/31/2020,C&M-GMS PCN DES Participation,PRC DELEGATED CO-COMMISSIONING,NHS ROTHERHAM CCG GP PRACTICE,35081561,"3,701.55"
Department of Health,NHS Rotherham CCG,12/31/2020,C&M-GMS Prem Cost Rent,PRC DELEGATED CO-COMMISSIONING,NHS ROTHERHAM CCG GP PRACTICE,35081561,762.92
Department of Health,NHS Rotherham CCG,12/31/2020,C&M-GMS Prem Notional Rent,PRC DELEGATED CO-COMMISSIONING,NHS ROTHERHAM CCG GP PRACTICE,35081561,"9,116.66"
Department of Health,NHS Rotherham CCG,12/31/2020,C&M-GMS Prem Rates,PRC DELEGATED CO-COMMISSIONING,NHS ROTHERHAM CCG GP PRACTICE,35081561,"1,601.00"
Department of Health,NHS Rotherham CCG,12/31/2020,C&M-GMS Prem Water Rates,PRC DELEGATED CO-COMMISSIONING,NHS ROTHERHAM CCG GP PRACTICE,35081561,210.46
Department of Health,NHS Rotherham CCG,12/31/2020,C&M-GMS QOF Aspiration,PRC DELEGATED CO-COMMISSIONING,NHS ROTHERHAM CCG GP PRACTICE,35081561,"9,316.04"
Department of Health,NHS Rotherham CCG,12/31/2020,C&M-GMS Cost of Drugs -Dispensing,LOCAL ENHANCED SERVICES,NHS ROTHERHAM CCG GP PRACTICE,35097803,"36,753.99"
Department of Health,NHS Rotherham CCG,12/31/2020,C&M-GMS Prof Fees Dispensing,PRC DELEGATED CO-COMMISSIONING,NHS ROTHERHAM CCG GP PRACTICE,35097803,"7,061.76"
Department of Health,NHS Rotherham CCG,12/31/2020,C&M-GMS PrscrptnChrgsColl&RmttdbyGP,LOCAL ENHANCED SERVICES,NHS ROTHERHAM CCG GP PRACTICE,35097803,301.95
Department of Health,NHS Rotherham CCG,12/31/2020,C&M-PMS Contract Value,PRC DELEGATED CO-COMMISSIONING,NHS ROTHERHAM CCG GP PRACTICE,34893431,"-1,801.12"
Department of Health,NHS Rotherham CCG,12/31/2020,C&M-PMS GP Statutory Levy,PRC DELEGATED CO-COMMISSIONING,NHS ROTHERHAM CCG GP PRACTICE,34893431,-421.12
Department of Health,NHS Rotherham CCG,12/31/2020,C&M-PMS Out of Hours Opt Outs,PRC DELEGATED CO-COMMISSIONING,NHS ROTHERHAM CCG GP PRACTICE,34893431,"-5,870.43"
Department of Health,NHS Rotherham CCG,12/31/2020,C&M-PMS PCN DES Participation,PRC DELEGATED CO-COMMISSIONING,NHS ROTHERHAM CCG GP PRACTICE,34893431,"-2,312.30"
Department of Health,NHS Rotherham CCG,12/31/2020,C&M-PMS Voluntary Levy,PRC DELEGATED CO-COMMISSIONING,NHS ROTHERHAM CCG GP PRACTICE,34893431,-61.93
Department of Health,NHS Rotherham CCG,12/31/2020,ME-PMS GP Pension EEs-PMS,PRC DELEGATED CO-COMMISSIONING,NHS ROTHERHAM CCG GP PRACTICE,34893431,"-8,838.28"
Department of Health,NHS Rotherham CCG,12/31/2020,ME-PMS GP Pension ERs Adjs - PMS,PRC DELEGATED CO-COMMISSIONING,NHS ROTHERHAM CCG GP PRACTICE,34893431,"-9,297.22"
Department of Health,NHS Rotherham CCG,12/31/2020,C&M-PMS Contract Value,PRC DELEGATED CO-COMMISSIONING,NHS ROTHERHAM CCG GP PRACTICE,34893432,"123,199.39"
Department of Health,NHS Rotherham CCG,12/31/2020,C&M-PMS DES Learn Dsblty Hlth Chk,PRC DELEGATED CO-COMMISSIONING,NHS ROTHERHAM CCG GP PRACTICE,34893432,280
Department of Health,NHS Rotherham CCG,12/31/2020,C&M-PMS Out of Hours Opt Outs,PRC DELEGATED CO-COMMISSIONING,NHS ROTHERHAM CCG GP PRACTICE,34893432,85.95
Department of Health,NHS Rotherham CCG,12/31/2020,C&M-PMS PCN DES Participation,PRC DELEGATED CO-COMMISSIONING,NHS ROTHERHAM CCG GP PRACTICE,34893432,"4,368.71"
Department of Health,NHS Rotherham CCG,12/31/2020,C&M-PMS Prem Notional Rent,PRC DELEGATED CO-COMMISSIONING,NHS ROTHERHAM CCG GP PRACTICE,34893432,"10,391.67"
Department of Health,NHS Rotherham CCG,12/31/2020,C&M-PMS Prem Rates,PRC DELEGATED CO-COMMISSIONING,NHS ROTHERHAM CCG GP PRACTICE,34893432,"2,333.00"
Department of Health,NHS Rotherham CCG,12/31/2020,C&M-PMS QOF Aspiration,PRC DELEGATED CO-COMMISSIONING,NHS ROTHERHAM CCG GP PRACTICE,34893432,"11,535.01"
Department of Health,NHS Rotherham CCG,12/31/2020,C&M-PMS Contract Value,PRC DELEGATED CO-COMMISSIONING,NHS ROTHERHAM CCG GP PRACTICE,34893429,"-1,495.21"
Department of Health,NHS Rotherham CCG,12/31/2020,C&M-PMS DES Extended Hours Access,PRC DELEGATED CO-COMMISSIONING,NHS ROTHERHAM CCG GP PRACTICE,34893429,"-7,349.27"
Department of Health,NHS Rotherham CCG,12/31/2020,C&M-PMS GP Statutory Levy,PRC DELEGATED CO-COMMISSIONING,NHS ROTHERHAM CCG GP PRACTICE,34893429,-503.2
Department of Health,NHS Rotherham CCG,12/31/2020,C&M-PMS Out of Hours Opt Outs,PRC DELEGATED CO-COMMISSIONING,NHS ROTHERHAM CCG GP PRACTICE,34893429,"-7,477.98"
Department of Health,NHS Rotherham CCG,12/31/2020,C&M-PMS PCN DES Clinical Director,PRC DELEGATED CO-COMMISSIONING,NHS ROTHERHAM CCG GP PRACTICE,34893429,"-3,384.15"
Department of Health,NHS Rotherham CCG,12/31/2020,C&M-PMS PCN DES PCN support,LOCAL ENHANCED SERVICES,NHS ROTHERHAM CCG GP PRACTICE,34893429,"-7,602.71"
Department of Health,NHS Rotherham CCG,12/31/2020,C&M-PMS PCN DES Participation,PRC DELEGATED CO-COMMISSIONING,NHS ROTHERHAM CCG GP PRACTICE,34893429,"-2,919.57"
Department of Health,NHS Rotherham CCG,12/31/2020,C&M-PMS Voluntary Levy,PRC DELEGATED CO-COMMISSIONING,NHS ROTHERHAM CCG GP PRACTICE,34893429,-74
Department of Health,NHS Rotherham CCG,12/31/2020,ME - PMS TPS Added Years Adj EEs,PRC DELEGATED CO-COMMISSIONING,NHS ROTHERHAM CCG GP PRACTICE,34893429,-176.27
Department of Health,NHS Rotherham CCG,12/31/2020,ME-PMS GP Pension EEs-PMS,PRC DELEGATED CO-COMMISSIONING,NHS ROTHERHAM CCG GP PRACTICE,34893429,"-9,451.62"
Department of Health,NHS Rotherham CCG,12/31/2020,ME-PMS GP Pension ERs Adjs - PMS,PRC DELEGATED CO-COMMISSIONING,NHS ROTHERHAM CCG GP PRACTICE,34893429,"-10,107.56"
Department of Health,NHS Rotherham CCG,12/31/2020,C&M-PMS Contract Value,PRC DELEGATED CO-COMMISSIONING,NHS ROTHERHAM CCG GP PRACTICE,34893430,"156,952.32"
Department of Health,NHS Rotherham CCG,12/31/2020,C&M-PMS DES Extended Hours Access,PRC DELEGATED CO-COMMISSIONING,NHS ROTHERHAM CCG GP PRACTICE,34893430,"6,244.58"
Department of Health,NHS Rotherham CCG,12/31/2020,C&M-PMS Out of Hours Opt Outs,PRC DELEGATED CO-COMMISSIONING,NHS ROTHERHAM CCG GP PRACTICE,34893430,71.34
Department of Health,NHS Rotherham CCG,12/31/2020,C&M-PMS PCN DES Clinical Director,PRC DELEGATED CO-COMMISSIONING,NHS ROTHERHAM CCG GP PRACTICE,34893430,"2,971.58"
Department of Health,NHS Rotherham CCG,12/31/2020,C&M-PMS PCN DES PCN support,LOCAL ENHANCED SERVICES,NHS ROTHERHAM CCG GP PRACTICE,34893430,"6,459.92"
Department of Health,NHS Rotherham CCG,12/31/2020,C&M-PMS PCN DES Participation,PRC DELEGATED CO-COMMISSIONING,NHS ROTHERHAM CCG GP PRACTICE,34893430,"5,844.12"
Department of Health,NHS Rotherham CCG,12/31/2020,C&M-PMS PCO Other,PRC DELEGATED CO-COMMISSIONING,NHS ROTHERHAM CCG GP PRACTICE,34893430,"1,060.10"
Department of Health,NHS Rotherham CCG,12/31/2020,C&M-PMS Prem Healthcentre Rent,PRC DELEGATED CO-COMMISSIONING,NHS ROTHERHAM CCG GP PRACTICE,34893430,537.32
Department of Health,NHS Rotherham CCG,12/31/2020,C&M-PMS Prem Notional Rent,PRC DELEGATED CO-COMMISSIONING,NHS ROTHERHAM CCG GP PRACTICE,34893430,"21,573.33"
Department of Health,NHS Rotherham CCG,12/31/2020,C&M-PMS Prem Rates,PRC DELEGATED CO-COMMISSIONING,NHS ROTHERHAM CCG GP PRACTICE,34893430,"6,795.00"
Department of Health,NHS Rotherham CCG,12/31/2020,C&M-PMS QOF Aspiration,PRC DELEGATED CO-COMMISSIONING,NHS ROTHERHAM CCG GP PRACTICE,34893430,"15,287.25"
Department of Health,NHS Rotherham CCG,12/31/2020,ME - PMS GP Prior Year ERs,PRC DELEGATED CO-COMMISSIONING,NHS ROTHERHAM CCG GP PRACTICE,34893430,"6,183.40"
Department of Health,NHS Rotherham CCG,12/31/2020,ME-PMS GP Pension EEs Adjs - PMS,PRC DELEGATED CO-COMMISSIONING,NHS ROTHERHAM CCG GP PRACTICE,34893430,"2,790.00"
Department of Health,NHS Rotherham CCG,12/31/2020,ME-PMS GP Pension ERs Adjs - PMS,PRC DELEGATED CO-COMMISSIONING,NHS ROTHERHAM CCG GP PRACTICE,34893430,"4,314.00"
Department of Health,NHS Rotherham CCG,12/31/2020,ME-PMS GP Prior Year EEs,PRC DELEGATED CO-COMMISSIONING,NHS ROTHERHAM CCG GP PRACTICE,34893430,"3,999.00"
Department of Health,NHS Rotherham CCG,12/31/2020,C&M-PMS Contract Value,PRC DELEGATED CO-COMMISSIONING,NHS ROTHERHAM CCG GP PRACTICE,34893453,"58,701.41"
Department of Health,NHS Rotherham CCG,12/31/2020,C&M-PMS Out of Hours Opt Outs,PRC DELEGATED CO-COMMISSIONING,NHS ROTHERHAM CCG GP PRACTICE,34893453,16.96
Department of Health,NHS Rotherham CCG,12/31/2020,C&M-PMS PCN DES Participation,PRC DELEGATED CO-COMMISSIONING,NHS ROTHERHAM CCG GP PRACTICE,34893453,"2,180.19"
Department of Health,NHS Rotherham CCG,12/31/2020,C&M-PMS PCO Other,PRC DELEGATED CO-COMMISSIONING,NHS ROTHERHAM CCG GP PRACTICE,34893453,448.4
Department of Health,NHS Rotherham CCG,12/31/2020,C&M-PMS Prem Healthcentre Rent,PRC DELEGATED CO-COMMISSIONING,NHS ROTHERHAM CCG GP PRACTICE,34893453,"4,085.87"
Department of Health,NHS Rotherham CCG,12/31/2020,C&M-PMS QOF Aspiration,PRC DELEGATED CO-COMMISSIONING,NHS ROTHERHAM CCG GP PRACTICE,34893453,"5,451.30"
Department of Health,NHS Rotherham CCG,12/31/2020,C&M-GMS Global Sum,PRC DELEGATED CO-COMMISSIONING,NHS ROTHERHAM CCG GP PRACTICE,35081563,"28,671.23"
Department of Health,NHS Rotherham CCG,12/31/2020,C&M-GMS PCN DES Participation,PRC DELEGATED CO-COMMISSIONING,NHS ROTHERHAM CCG GP PRACTICE,35081563,"1,139.30"
Department of Health,NHS Rotherham CCG,12/31/2020,C&M-GMS Prem Healthcentre Rent,PRC DELEGATED CO-COMMISSIONING,NHS ROTHERHAM CCG GP PRACTICE,35081563,"2,821.50"
Department of Health,NHS Rotherham CCG,12/31/2020,C&M-GMS QOF Aspiration,PRC DELEGATED CO-COMMISSIONING,NHS ROTHERHAM CCG GP PRACTICE,35081563,"3,104.13"
Department of Health,NHS Rotherham CCG,12/31/2020,C&M-PMS Contract Value,PRC DELEGATED CO-COMMISSIONING,NHS ROTHERHAM CCG GP PRACTICE,34893434,"29,224.44"
Department of Health,NHS Rotherham CCG,12/31/2020,C&M-PMS Out of Hours Opt Outs,PRC DELEGATED CO-COMMISSIONING,NHS ROTHERHAM CCG GP PRACTICE,34893434,40.56
Department of Health,NHS Rotherham CCG,12/31/2020,C&M-PMS PCN DES Participation,PRC DELEGATED CO-COMMISSIONING,NHS ROTHERHAM CCG GP PRACTICE,34893434,"1,089.79"
Department of Health,NHS Rotherham CCG,12/31/2020,C&M-PMS Prem Notional Rent,PRC DELEGATED CO-COMMISSIONING,NHS ROTHERHAM CCG GP PRACTICE,34893434,"3,100.00"
Department of Health,NHS Rotherham CCG,12/31/2020,C&M-PMS Prem Rates,PRC DELEGATED CO-COMMISSIONING,NHS ROTHERHAM CCG GP PRACTICE,34893434,672
Department of Health,NHS Rotherham CCG,12/31/2020,C&M-PMS QOF Aspiration,PRC DELEGATED CO-COMMISSIONING,NHS ROTHERHAM CCG GP PRACTICE,34893434,"2,894.88"
Department of Health,NHS Rotherham CCG,12/31/2020,C&M-PMS Contract Value,PRC DELEGATED CO-COMMISSIONING,NHS ROTHERHAM CCG GP PRACTICE,34893442,"55,641.76"
Department of Health,NHS Rotherham CCG,12/31/2020,C&M-PMS Out of Hours Opt Outs,PRC DELEGATED CO-COMMISSIONING,NHS ROTHERHAM CCG GP PRACTICE,34893442,35.58
Department of Health,NHS Rotherham CCG,12/31/2020,C&M-PMS PCN DES Participation,PRC DELEGATED CO-COMMISSIONING,NHS ROTHERHAM CCG GP PRACTICE,34893442,"2,093.16"
Department of Health,NHS Rotherham CCG,12/31/2020,C&M-PMS Prem Notional Rent,PRC DELEGATED CO-COMMISSIONING,NHS ROTHERHAM CCG GP PRACTICE,34893442,"6,791.67"
Department of Health,NHS Rotherham CCG,12/31/2020,C&M-PMS QOF Aspiration,PRC DELEGATED CO-COMMISSIONING,NHS ROTHERHAM CCG GP PRACTICE,34893442,"5,316.88"
Department of Health,NHS Rotherham CCG,12/31/2020,C&M-GMS Global Sum,PRC DELEGATED CO-COMMISSIONING,NHS ROTHERHAM CCG GP PRACTICE,35081565,"77,153.70"
Department of Health,NHS Rotherham CCG,12/31/2020,C&M-GMS PCN DES Participation,PRC DELEGATED CO-COMMISSIONING,NHS ROTHERHAM CCG GP PRACTICE,35081565,"3,023.57"
Department of Health,NHS Rotherham CCG,12/31/2020,C&M-GMS Prem Notional Rent,PRC DELEGATED CO-COMMISSIONING,NHS ROTHERHAM CCG GP PRACTICE,35081565,"6,225.00"
Department of Health,NHS Rotherham CCG,12/31/2020,C&M-GMS Prem Rates,PRC DELEGATED CO-COMMISSIONING,NHS ROTHERHAM CCG GP PRACTICE,35081565,"1,092.00"
Department of Health,NHS Rotherham CCG,12/31/2020,C&M-GMS QOF Aspiration,PRC DELEGATED CO-COMMISSIONING,NHS ROTHERHAM CCG GP PRACTICE,35081565,"7,813.95"
Department of Health,NHS Rotherham CCG,12/31/2020,C&M-GMS Global Sum,PRC DELEGATED CO-COMMISSIONING,NHS ROTHERHAM CCG GP PRACTICE,35081567,"30,263.14"
Department of Health,NHS Rotherham CCG,12/31/2020,C&M-GMS PCN DES Participation,PRC DELEGATED CO-COMMISSIONING,NHS ROTHERHAM CCG GP PRACTICE,35081567,"1,224.75"
Department of Health,NHS Rotherham CCG,12/31/2020,C&M-GMS Prem Healthcentre Rent,PRC DELEGATED CO-COMMISSIONING,NHS ROTHERHAM CCG GP PRACTICE,35081567,"3,808.94"
Department of Health,NHS Rotherham CCG,12/31/2020,C&M-GMS QOF Aspiration,PRC DELEGATED CO-COMMISSIONING,NHS ROTHERHAM CCG GP PRACTICE,35081567,"2,694.87"
Department of Health,NHS Rotherham CCG,12/31/2020,C&M-PMS Contract Value,PRC DELEGATED CO-COMMISSIONING,NHS ROTHERHAM CCG GP PRACTICE,34893438,"70,654.77"
Department of Health,NHS Rotherham CCG,12/31/2020,C&M-PMS Out of Hours Opt Outs,PRC DELEGATED CO-COMMISSIONING,NHS ROTHERHAM CCG GP PRACTICE,34893438,94.23
Department of Health,NHS Rotherham CCG,12/31/2020,C&M-PMS PCN DES Participation,PRC DELEGATED CO-COMMISSIONING,NHS ROTHERHAM CCG GP PRACTICE,34893438,"2,609.32"
Department of Health,NHS Rotherham CCG,12/31/2020,C&M-PMS PCO Other,PRC DELEGATED CO-COMMISSIONING,NHS ROTHERHAM CCG GP PRACTICE,34893438,511.7
Department of Health,NHS Rotherham CCG,12/31/2020,C&M-PMS Prem Notional Rent,PRC DELEGATED CO-COMMISSIONING,NHS ROTHERHAM CCG GP PRACTICE,34893438,"4,779.16"
Department of Health,NHS Rotherham CCG,12/31/2020,C&M-PMS Prem Rates,PRC DELEGATED CO-COMMISSIONING,NHS ROTHERHAM CCG GP PRACTICE,34893438,"2,491.60"
Department of Health,NHS Rotherham CCG,12/31/2020,C&M-PMS Prem Water Rates,PRC DELEGATED CO-COMMISSIONING,NHS ROTHERHAM CCG GP PRACTICE,34893438,117.38
Department of Health,NHS Rotherham CCG,12/31/2020,C&M-PMS QOF Aspiration,PRC DELEGATED CO-COMMISSIONING,NHS ROTHERHAM CCG GP PRACTICE,34893438,"6,336.39"
Department of Health,NHS Rotherham CCG,12/31/2020,C&M-PMS Contract Value,PRC DELEGATED CO-COMMISSIONING,NHS ROTHERHAM CCG GP PRACTICE,34889183,"52,607.34"
Department of Health,NHS Rotherham CCG,12/31/2020,C&M-PMS Out of Hours Opt Outs,PRC DELEGATED CO-COMMISSIONING,NHS ROTHERHAM CCG GP PRACTICE,34889183,52.64
Department of Health,NHS Rotherham CCG,12/31/2020,C&M-PMS PCN DES Participation,PRC DELEGATED CO-COMMISSIONING,NHS ROTHERHAM CCG GP PRACTICE,34889183,"1,974.90"
Department of Health,NHS Rotherham CCG,12/31/2020,C&M-PMS Prem Notional Rent,PRC DELEGATED CO-COMMISSIONING,NHS ROTHERHAM CCG GP PRACTICE,34889183,"3,645.83"
Department of Health,NHS Rotherham CCG,12/31/2020,C&M-PMS Prem Rates,PRC DELEGATED CO-COMMISSIONING,NHS ROTHERHAM CCG GP PRACTICE,34889183,723
Department of Health,NHS Rotherham CCG,12/31/2020,C&M-PMS QOF Aspiration,PRC DELEGATED CO-COMMISSIONING,NHS ROTHERHAM CCG GP PRACTICE,34889183,"5,288.60"
Department of Health,NHS Rotherham CCG,12/31/2020,C&M-PMS Contract Value,PRC DELEGATED CO-COMMISSIONING,NHS ROTHERHAM CCG GP PRACTICE,34889185,"71,234.07"
Department of Health,NHS Rotherham CCG,12/31/2020,C&M-PMS Out of Hours Opt Outs,PRC DELEGATED CO-COMMISSIONING,NHS ROTHERHAM CCG GP PRACTICE,34889185,111.48
Department of Health,NHS Rotherham CCG,12/31/2020,C&M-PMS PCN DES Participation,PRC DELEGATED CO-COMMISSIONING,NHS ROTHERHAM CCG GP PRACTICE,34889185,"2,671.96"
Department of Health,NHS Rotherham CCG,12/31/2020,C&M-PMS PCO Other,PRC DELEGATED CO-COMMISSIONING,NHS ROTHERHAM CCG GP PRACTICE,34889185,512.7
Department of Health,NHS Rotherham CCG,12/31/2020,C&M-PMS Prem Healthcentre Rent,PRC DELEGATED CO-COMMISSIONING,NHS ROTHERHAM CCG GP PRACTICE,34889185,573.89
Department of Health,NHS Rotherham CCG,12/31/2020,C&M-PMS Prem Notional Rent,PRC DELEGATED CO-COMMISSIONING,NHS ROTHERHAM CCG GP PRACTICE,34889185,"3,402.08"
Department of Health,NHS Rotherham CCG,12/31/2020,C&M-PMS Prem Rates,PRC DELEGATED CO-COMMISSIONING,NHS ROTHERHAM CCG GP PRACTICE,34889185,906
Department of Health,NHS Rotherham CCG,12/31/2020,C&M-PMS QOF Aspiration,PRC DELEGATED CO-COMMISSIONING,NHS ROTHERHAM CCG GP PRACTICE,34889185,"6,040.09"
Department of Health,NHS Rotherham CCG,12/31/2020,C&M-PMS Contract Value,PRC DELEGATED CO-COMMISSIONING,NHS ROTHERHAM CCG GP PRACTICE,34889181,"54,986.56"
Department of Health,NHS Rotherham CCG,12/31/2020,C&M-PMS Out of Hours Opt Outs,PRC DELEGATED CO-COMMISSIONING,NHS ROTHERHAM CCG GP PRACTICE,34889181,22.34
Department of Health,NHS Rotherham CCG,12/31/2020,C&M-PMS PCN DES Participation,PRC DELEGATED CO-COMMISSIONING,NHS ROTHERHAM CCG GP PRACTICE,34889181,"1,950.55"
Department of Health,NHS Rotherham CCG,12/31/2020,C&M-PMS PCO Other,PRC DELEGATED CO-COMMISSIONING,NHS ROTHERHAM CCG GP PRACTICE,34889181,441.2
Department of Health,NHS Rotherham CCG,12/31/2020,C&M-PMS Prem Healthcentre Rent,PRC DELEGATED CO-COMMISSIONING,NHS ROTHERHAM CCG GP PRACTICE,34889181,"1,979.17"
Department of Health,NHS Rotherham CCG,12/31/2020,C&M-PMS Prem Water Rates,PRC DELEGATED CO-COMMISSIONING,NHS ROTHERHAM CCG GP PRACTICE,34889181,102.64
Department of Health,NHS Rotherham CCG,12/31/2020,C&M-PMS QOF Aspiration,PRC DELEGATED CO-COMMISSIONING,NHS ROTHERHAM CCG GP PRACTICE,34889181,"4,399.19"
Department of Health,NHS Rotherham CCG,12/31/2020,C&M-PMS Contract Value,PRC DELEGATED CO-COMMISSIONING,NHS ROTHERHAM CCG GP PRACTICE,34893436,"48,930.44"
Department of Health,NHS Rotherham CCG,12/31/2020,C&M-PMS Out of Hours Opt Outs,PRC DELEGATED CO-COMMISSIONING,NHS ROTHERHAM CCG GP PRACTICE,34893436,23.77
Department of Health,NHS Rotherham CCG,12/31/2020,C&M-PMS PCN DES Participation,PRC DELEGATED CO-COMMISSIONING,NHS ROTHERHAM CCG GP PRACTICE,34893436,"1,795.72"
Department of Health,NHS Rotherham CCG,12/31/2020,C&M-PMS Prem Notional Rent,PRC DELEGATED CO-COMMISSIONING,NHS ROTHERHAM CCG GP PRACTICE,34893436,"7,100.09"
Department of Health,NHS Rotherham CCG,12/31/2020,C&M-PMS QOF Aspiration,PRC DELEGATED CO-COMMISSIONING,NHS ROTHERHAM CCG GP PRACTICE,34893436,"3,965.40"
Department of Health,NHS Rotherham CCG,12/31/2020,C&M-PMS Contract Value,PRC DELEGATED CO-COMMISSIONING,NHS ROTHERHAM CCG GP PRACTICE,34893444,"38,499.94"
Department of Health,NHS Rotherham CCG,12/31/2020,C&M-PMS DES Learn Dsblty Hlth Chk,PRC DELEGATED CO-COMMISSIONING,NHS ROTHERHAM CCG GP PRACTICE,34893444,140
Department of Health,NHS Rotherham CCG,12/31/2020,C&M-PMS Out of Hours Opt Outs,PRC DELEGATED CO-COMMISSIONING,NHS ROTHERHAM CCG GP PRACTICE,34893444,33.85
Department of Health,NHS Rotherham CCG,12/31/2020,C&M-PMS PCN DES Participation,PRC DELEGATED CO-COMMISSIONING,NHS ROTHERHAM CCG GP PRACTICE,34893444,"1,449.41"
Department of Health,NHS Rotherham CCG,12/31/2020,C&M-PMS PCO Other,PRC DELEGATED CO-COMMISSIONING,NHS ROTHERHAM CCG GP PRACTICE,34893444,"3,105.00"
Department of Health,NHS Rotherham CCG,12/31/2020,C&M-PMS Prem Notional Rent,PRC DELEGATED CO-COMMISSIONING,NHS ROTHERHAM CCG GP PRACTICE,34893444,"3,204.17"
Department of Health,NHS Rotherham CCG,12/31/2020,C&M-PMS QOF Aspiration,PRC DELEGATED CO-COMMISSIONING,NHS ROTHERHAM CCG GP PRACTICE,34893444,"3,453.75"
Department of Health,NHS Rotherham CCG,12/31/2020,C&M-PMS Contract Value,PRC DELEGATED CO-COMMISSIONING,NHS ROTHERHAM CCG GP PRACTICE,34911352,"82,195.42"
Department of Health,NHS Rotherham CCG,12/31/2020,C&M-PMS Out of Hours Opt Outs,PRC DELEGATED CO-COMMISSIONING,NHS ROTHERHAM CCG GP PRACTICE,34911352,15.62
Department of Health,NHS Rotherham CCG,12/31/2020,C&M-PMS PCN DES Participation,PRC DELEGATED CO-COMMISSIONING,NHS ROTHERHAM CCG GP PRACTICE,34911352,"3,031.70"
Department of Health,NHS Rotherham CCG,12/31/2020,C&M-PMS PCO Locum Adop/Pat/Mat,PRC DELEGATED CO-COMMISSIONING,NHS ROTHERHAM CCG GP PRACTICE,34911352,"7,497.60"
Department of Health,NHS Rotherham CCG,12/31/2020,C&M-PMS PCO Locum Sickness,PRC DELEGATED CO-COMMISSIONING,NHS ROTHERHAM CCG GP PRACTICE,34911352,"1,360.00"
Department of Health,NHS Rotherham CCG,12/31/2020,C&M-PMS PCO Other,PRC DELEGATED CO-COMMISSIONING,NHS ROTHERHAM CCG GP PRACTICE,34911352,630.6
Department of Health,NHS Rotherham CCG,12/31/2020,C&M-PMS Prem Notional Rent,PRC DELEGATED CO-COMMISSIONING,NHS ROTHERHAM CCG GP PRACTICE,34911352,"6,512.50"
Department of Health,NHS Rotherham CCG,12/31/2020,C&M-PMS Prem Rates,PRC DELEGATED CO-COMMISSIONING,NHS ROTHERHAM CCG GP PRACTICE,34911352,"2,023.00"
Department of Health,NHS Rotherham CCG,12/31/2020,C&M-PMS QOF Aspiration,PRC DELEGATED CO-COMMISSIONING,NHS ROTHERHAM CCG GP PRACTICE,34911352,"7,694.78"
Department of Health,NHS Rotherham CCG,12/31/2020,Prescribing,MEDICINES MANAGEMENT - CLINICAL,FRESENIUS KABI LTD,34952684,8.88
Department of Health,NHS Rotherham CCG,12/31/2020,Prescribing,MEDICINES MANAGEMENT - CLINICAL,FRESENIUS KABI LTD,34952684,"34,253.92"
Department of Health,NHS Rotherham CCG,12/31/2020,C&M-APMS Contract Value,PRC DELEGATED CO-COMMISSIONING,NHS ROTHERHAM CCG GP PRACTICE,34893447,"65,170.44"
Department of Health,NHS Rotherham CCG,12/31/2020,C&M-APMS DES Violent Patients,PRC DELEGATED CO-COMMISSIONING,NHS ROTHERHAM CCG GP PRACTICE,34893447,604.17
Department of Health,NHS Rotherham CCG,12/31/2020,C&M-APMS OOH Opt Outs,PRC DELEGATED CO-COMMISSIONING,NHS ROTHERHAM CCG GP PRACTICE,34893447,173
Department of Health,NHS Rotherham CCG,12/31/2020,C&M-APMS Other FDR Payment,PRC DELEGATED CO-COMMISSIONING,NHS ROTHERHAM CCG GP PRACTICE,34893447,"12,840.67"
Department of Health,NHS Rotherham CCG,12/31/2020,C&M-APMS PCN DES Participation,PRC DELEGATED CO-COMMISSIONING,NHS ROTHERHAM CCG GP PRACTICE,34893447,"1,198.60"
Department of Health,NHS Rotherham CCG,12/31/2020,C&M-APMS Prem Actual Rent,PRC DELEGATED CO-COMMISSIONING,NHS ROTHERHAM CCG GP PRACTICE,34893447,"2,083.33"
Department of Health,NHS Rotherham CCG,12/31/2020,C&M-APMS Prem Healthcentre Rent,PRC DELEGATED CO-COMMISSIONING,NHS ROTHERHAM CCG GP PRACTICE,34893447,"4,500.00"
Department of Health,NHS Rotherham CCG,12/31/2020,C&M-APMS QOF Aspiration,PRC DELEGATED CO-COMMISSIONING,NHS ROTHERHAM CCG GP PRACTICE,34893447,36.09
Department of Health,NHS Rotherham CCG,12/31/2020,C&M-PMS PCN DES Participation,PRC DELEGATED CO-COMMISSIONING,NHS ROTHERHAM CCG GP PRACTICE,34893447,"1,200.64"
Department of Health,NHS Rotherham CCG,12/31/2020,C&M-PMS Prem Rates,PRC DELEGATED CO-COMMISSIONING,NHS ROTHERHAM CCG GP PRACTICE,34893447,478
Department of Health,NHS Rotherham CCG,12/31/2020,C&M-PMS QOF Aspiration,PRC DELEGATED CO-COMMISSIONING,NHS ROTHERHAM CCG GP PRACTICE,34893447,"5,440.34"
Department of Health,NHS Rotherham CCG,12/31/2020,Apprenticeship Levy Payable,BALANCE SHEET,HMRC,34950099,775
Department of Health,NHS Rotherham CCG,12/31/2020,Income tax <1Yr,BALANCE SHEET,HMRC,34950099,"59,388.25"
Department of Health,NHS Rotherham CCG,12/31/2020,Income tax <1Yr-Student Loans,BALANCE SHEET,HMRC,34950099,473
Department of Health,NHS Rotherham CCG,12/31/2020,National Insurance < 1 yr-NI- ERS,BALANCE SHEET,HMRC,34950099,"43,035.97"
Department of Health,NHS Rotherham CCG,12/31/2020,National Insurance < 1 yr-NI-EES,BALANCE SHEET,HMRC,34950099,"31,788.93"
Department of Health,NHS Rotherham CCG,12/31/2020,Statutory Mat Pay < 1 yr,BALANCE SHEET,HMRC,34950099,-695.5
Department of Health,NHS Rotherham CCG,12/31/2020,C&M-PMS Contract Value,PRC DELEGATED CO-COMMISSIONING,NHS ROTHERHAM CCG GP PRACTICE,34889186,"-3,236.29"
Department of Health,NHS Rotherham CCG,12/31/2020,C&M-PMS GP Statutory Levy,PRC DELEGATED CO-COMMISSIONING,NHS ROTHERHAM CCG GP PRACTICE,34889186,-391.4
Department of Health,NHS Rotherham CCG,12/31/2020,C&M-PMS Out of Hours Opt Outs,PRC DELEGATED CO-COMMISSIONING,NHS ROTHERHAM CCG GP PRACTICE,34889186,"-5,920.79"
Department of Health,NHS Rotherham CCG,12/31/2020,C&M-PMS PCN DES Participation,PRC DELEGATED CO-COMMISSIONING,NHS ROTHERHAM CCG GP PRACTICE,34889186,"-2,314.16"
Department of Health,NHS Rotherham CCG,12/31/2020,C&M-PMS Prem Healthcentre Rent,PRC DELEGATED CO-COMMISSIONING,NHS ROTHERHAM CCG GP PRACTICE,34889186,-17.11
Department of Health,NHS Rotherham CCG,12/31/2020,C&M-PMS Voluntary Levy,PRC DELEGATED CO-COMMISSIONING,NHS ROTHERHAM CCG GP PRACTICE,34889186,-57.56
Department of Health,NHS Rotherham CCG,12/31/2020,ME-PMS GP Pension EEs Adjs - PMS,PRC DELEGATED CO-COMMISSIONING,NHS ROTHERHAM CCG GP PRACTICE,34889186,"-1,323.45"
Department of Health,NHS Rotherham CCG,12/31/2020,ME-PMS GP Pension EEs-PMS,PRC DELEGATED CO-COMMISSIONING,NHS ROTHERHAM CCG GP PRACTICE,34889186,"-6,974.50"
Department of Health,NHS Rotherham CCG,12/31/2020,ME-PMS GP Pension ERs Adjs - PMS,PRC DELEGATED CO-COMMISSIONING,NHS ROTHERHAM CCG GP PRACTICE,34889186,"-9,144.42"
Department of Health,NHS Rotherham CCG,12/31/2020,C&M-PMS Contract Value,PRC DELEGATED CO-COMMISSIONING,NHS ROTHERHAM CCG GP PRACTICE,34889187,"124,224.36"
Department of Health,NHS Rotherham CCG,12/31/2020,C&M-PMS Out of Hours Opt Outs,PRC DELEGATED CO-COMMISSIONING,NHS ROTHERHAM CCG GP PRACTICE,34889187,154.45
Department of Health,NHS Rotherham CCG,12/31/2020,C&M-PMS PCN DES Participation,PRC DELEGATED CO-COMMISSIONING,NHS ROTHERHAM CCG GP PRACTICE,34889187,"2,314.16"
Department of Health,NHS Rotherham CCG,12/31/2020,C&M-PMS PCO Other,PRC DELEGATED CO-COMMISSIONING,NHS ROTHERHAM CCG GP PRACTICE,34889187,838
Department of Health,NHS Rotherham CCG,12/31/2020,C&M-PMS Prem Actual Rent,PRC DELEGATED CO-COMMISSIONING,NHS ROTHERHAM CCG GP PRACTICE,34889187,"11,987.51"
Department of Health,NHS Rotherham CCG,12/31/2020,C&M-PMS Prem Healthcentre Rent,PRC DELEGATED CO-COMMISSIONING,NHS ROTHERHAM CCG GP PRACTICE,34889187,"1,185.09"
Department of Health,NHS Rotherham CCG,12/31/2020,C&M-PMS Prem Notional Rent,PRC DELEGATED CO-COMMISSIONING,NHS ROTHERHAM CCG GP PRACTICE,34889187,"9,783.34"
Department of Health,NHS Rotherham CCG,12/31/2020,C&M-PMS Prem Rates,PRC DELEGATED CO-COMMISSIONING,NHS ROTHERHAM CCG GP PRACTICE,34889187,"4,480.00"
Department of Health,NHS Rotherham CCG,12/31/2020,C&M-PMS Prem Water Rates,PRC DELEGATED CO-COMMISSIONING,NHS ROTHERHAM CCG GP PRACTICE,34889187,423.54
Department of Health,NHS Rotherham CCG,12/31/2020,C&M-PMS QOF Aspiration,PRC DELEGATED CO-COMMISSIONING,NHS ROTHERHAM CCG GP PRACTICE,34889187,"12,088.28"
Department of Health,NHS Rotherham CCG,12/31/2020,C&M-PMS Cost of Drugs -Prescribing,LOCAL ENHANCED SERVICES,NHS ROTHERHAM CCG GP PRACTICE,35096586,"30,338.58"
Department of Health,NHS Rotherham CCG,12/31/2020,C&M-PMS Prof fees Prescribing,PRC DELEGATED CO-COMMISSIONING,NHS ROTHERHAM CCG GP PRACTICE,35096586,"7,161.13"
Department of Health,NHS Rotherham CCG,12/31/2020,C&M-PMS Contract Value,PRC DELEGATED CO-COMMISSIONING,NHS ROTHERHAM CCG GP PRACTICE,34893451,"55,803.79"
Department of Health,NHS Rotherham CCG,12/31/2020,C&M-PMS Out of Hours Opt Outs,PRC DELEGATED CO-COMMISSIONING,NHS ROTHERHAM CCG GP PRACTICE,34893451,11.05
Department of Health,NHS Rotherham CCG,12/31/2020,C&M-PMS PCN DES Participation,PRC DELEGATED CO-COMMISSIONING,NHS ROTHERHAM CCG GP PRACTICE,34893451,"2,062.87"
Department of Health,NHS Rotherham CCG,12/31/2020,C&M-PMS Prem Healthcentre Rent,PRC DELEGATED CO-COMMISSIONING,NHS ROTHERHAM CCG GP PRACTICE,34893451,"4,036.20"
Department of Health,NHS Rotherham CCG,12/31/2020,C&M-PMS QOF Aspiration,PRC DELEGATED CO-COMMISSIONING,NHS ROTHERHAM CCG GP PRACTICE,34893451,"5,821.35"
Department of Health,NHS Rotherham CCG,12/31/2020,Clinical&Medical-Commercial Sector,WHEELCHAIR SERVICE,MEDEQUIP ASSISTIVE TECHNOLOGY LTD,34864509,"193,646.40"
Department of Health,NHS Rotherham CCG,12/31/2020,Clinical&Medical-Commercial Sector,LEARNING DIFFICULTIES,MOORVILLE RESIDENTIAL,35095055,"28,576.73"
Department of Health,NHS Rotherham CCG,12/31/2020,Voids and Subsidies,RECHARGES NHS PROPERTY SERVICES LTD,NHS PROPERTY SERVICES LTD,34913698,"34,313.75"
Department of Health,NHS Rotherham CCG,12/31/2020,Voids and Subsidies,RECHARGES NHS PROPERTY SERVICES LTD,NHS PROPERTY SERVICES LTD,34913699,"34,281.26"
Department of Health,NHS Rotherham CCG,12/31/2020,Voids and Subsidies,RECHARGES NHS PROPERTY SERVICES LTD,NHS PROPERTY SERVICES LTD,34913703,"34,281.26"
Department of Health,NHS Rotherham CCG,12/31/2020,Voids and Subsidies,RECHARGES NHS PROPERTY SERVICES LTD,NHS PROPERTY SERVICES LTD,34952673,"34,520.80"
Department of Health,NHS Rotherham CCG,12/31/2020,Professional Fees,NON RECURRENT PROGRAMMES,PENNINGTON CHOICES LTD,34901714,"40,767.46"
Department of Health,NHS Rotherham CCG,12/31/2020,Oth Travel Costs-Patient Transport,PATIENT TRANSPORT,PREMIER CARE DIRECT LTD,34814808,"47,297.42"
Department of Health,NHS Rotherham CCG,12/31/2020,Cont Care- Palliative Care,CHC ADULT FULLY FUNDED,ROCHE ABBEY CARE HOME,34991285,"6,769.20"
Department of Health,NHS Rotherham CCG,12/31/2020,Cont Care-Interim Funding(Pre Panel),CHC ADULT FULLY FUNDED,ROCHE ABBEY CARE HOME,34991285,"8,719.28"
Department of Health,NHS Rotherham CCG,12/31/2020,Cont Care-Physical Disab (65+),CHC ADULT FULLY FUNDED,ROCHE ABBEY CARE HOME,34991285,"14,672.90"
Department of Health,NHS Rotherham CCG,12/31/2020,Cont Care-Physical Disab (<65),CHC ADULT FULLY FUNDED,ROCHE ABBEY CARE HOME,34991285,"2,901.09"
Department of Health,NHS Rotherham CCG,12/31/2020,Hcare Srv Rec Fdtn Trust-Contract Baseline,MENTAL HEALTH CONTRACTS,ROTHERHAM DONCASTER AND SOUTH HUMBER NHS FOUNDATION TRUST,34819742,"2,960,731.00"
Department of Health,NHS Rotherham CCG,12/31/2020,Clinical&Medical-Voluntary Sector,HOSPICES,ROTHERHAM HOSPICE TRUST (THE),34991235,"1,092,774.00"
Department of Health,NHS Rotherham CCG,12/31/2020,Cont Care-Interim Funding(Pre Panel),FUNDED NURSING CARE,ROTHERHAM METROPOLITAN BOROUGH COUNCIL,35057397,"1,500,000.00"
Department of Health,NHS Rotherham CCG,12/31/2020,Clinical&Medical-Othe Public Sector,NON RECURRENT PROGRAMMES,ROTHERHAM METROPOLITAN BOROUGH COUNCIL,35057398,"2,000,000.00"
Department of Health,NHS Rotherham CCG,12/31/2020,Clinical&Medical-Othe Public Sector,NON RECURRENT PROGRAMMES,ROTHERHAM METROPOLITAN BOROUGH COUNCIL,35057399,"1,000,000.00"
Department of Health,NHS Rotherham CCG,12/31/2020,Hcare Srv Rec Fdtn Trust-Contract Baseline,ACUTE COMMISSIONING,ROTHERHAM NHS FOUNDATION TRUST,34819746,"16,258,504.00"
Department of Health,NHS Rotherham CCG,12/31/2020,Hcare Srv Rec Fdtn Trust-Contract Baseline,ACUTE COMMISSIONING,ROTHERHAM NHS FOUNDATION TRUST,34819747,"3,329,934.00"
Department of Health,NHS Rotherham CCG,12/31/2020,Hcare Srv Rec Fdtn Trust-Contract Baseline,ACUTE COMMISSIONING,SHEFFIELD CHILDRENS NHS FOUNDATION TRUST,34819743,"198,638.00"
Department of Health,NHS Rotherham CCG,12/31/2020,Hcare Srv Rec Fdtn Trust-Contract Baseline,MENTAL HEALTH CONTRACTS,SHEFFIELD HEALTH & SOCIAL CARE NHS FOUNDATION TRUST,34819744,"57,294.00"
Department of Health,NHS Rotherham CCG,12/31/2020,Hcare Srv Rec Fdtn Trust-Contract Baseline,ACUTE COMMISSIONING,SHEFFIELD TEACHING HOSPITALS NHS FOUNDATION TRUST,34819745,"2,224,428.00"
Department of Health,NHS Rotherham CCG,12/31/2020,Clinical&Medical-Commercial Sector,ACUTE COMMISSIONING,SPAMEDICA LTD,35087080,"104,833.31"
Department of Health,NHS Rotherham CCG,12/31/2020,C&M-PMS Contract Value,PRC DELEGATED CO-COMMISSIONING,NHS ROTHERHAM CCG GP PRACTICE,34893448,-412.94
Department of Health,NHS Rotherham CCG,12/31/2020,C&M-PMS GP Statutory Levy,PRC DELEGATED CO-COMMISSIONING,NHS ROTHERHAM CCG GP PRACTICE,34893448,-466.91
Department of Health,NHS Rotherham CCG,12/31/2020,C&M-PMS Out of Hours Opt Outs,PRC DELEGATED CO-COMMISSIONING,NHS ROTHERHAM CCG GP PRACTICE,34893448,"-6,191.76"
Department of Health,NHS Rotherham CCG,12/31/2020,C&M-PMS PCN DES Participation,PRC DELEGATED CO-COMMISSIONING,NHS ROTHERHAM CCG GP PRACTICE,34893448,"-2,438.91"
Department of Health,NHS Rotherham CCG,12/31/2020,C&M-PMS Voluntary Levy,PRC DELEGATED CO-COMMISSIONING,NHS ROTHERHAM CCG GP PRACTICE,34893448,-68.66
Department of Health,NHS Rotherham CCG,12/31/2020,ME-PMS GP Pension EEs-PMS,PRC DELEGATED CO-COMMISSIONING,NHS ROTHERHAM CCG GP PRACTICE,34893448,"-9,468.29"
Department of Health,NHS Rotherham CCG,12/31/2020,ME-PMS GP Pension ERs Adjs - PMS,PRC DELEGATED CO-COMMISSIONING,NHS ROTHERHAM CCG GP PRACTICE,34893448,"-10,179.84"
Department of Health,NHS Rotherham CCG,12/31/2020,C&M-PMS Contract Value,PRC DELEGATED CO-COMMISSIONING,NHS ROTHERHAM CCG GP PRACTICE,34893449,"129,946.59"
Department of Health,NHS Rotherham CCG,12/31/2020,C&M-PMS Cost of Drugs -Prescribing,LOCAL ENHANCED SERVICES,NHS ROTHERHAM CCG GP PRACTICE,34893449,"6,141.89"
Department of Health,NHS Rotherham CCG,12/31/2020,C&M-PMS Out of Hours Opt Outs,PRC DELEGATED CO-COMMISSIONING,NHS ROTHERHAM CCG GP PRACTICE,34893449,19.7
Department of Health,NHS Rotherham CCG,12/31/2020,C&M-PMS PCN DES Participation,PRC DELEGATED CO-COMMISSIONING,NHS ROTHERHAM CCG GP PRACTICE,34893449,"4,881.98"
Department of Health,NHS Rotherham CCG,12/31/2020,C&M-PMS PCO Other,PRC DELEGATED CO-COMMISSIONING,NHS ROTHERHAM CCG GP PRACTICE,34893449,993.7
Department of Health,NHS Rotherham CCG,12/31/2020,C&M-PMS Prem Healthcentre Rent,PRC DELEGATED CO-COMMISSIONING,NHS ROTHERHAM CCG GP PRACTICE,34893449,993.65
Department of Health,NHS Rotherham CCG,12/31/2020,C&M-PMS Prof fees Prescribing,PRC DELEGATED CO-COMMISSIONING,NHS ROTHERHAM CCG GP PRACTICE,34893449,"1,251.37"
Department of Health,NHS Rotherham CCG,12/31/2020,C&M-PMS QOF Aspiration,PRC DELEGATED CO-COMMISSIONING,NHS ROTHERHAM CCG GP PRACTICE,34893449,"13,153.85"
Department of Health,NHS Rotherham CCG,12/31/2020,C&M-PMS Cost of Drugs -Prescribing,LOCAL ENHANCED SERVICES,NHS ROTHERHAM CCG GP PRACTICE,35097814,"20,102.92"
Department of Health,NHS Rotherham CCG,12/31/2020,C&M-PMS Prof fees Prescribing,PRC DELEGATED CO-COMMISSIONING,NHS ROTHERHAM CCG GP PRACTICE,35097814,"5,038.10"
Department of Health,NHS Rotherham CCG,12/31/2020,Hcare Srv Rec NHS Trust-Contract Baseline,AMBULANCE SERVICES,YORKSHIRE AMBULANCE SERVICE NHS TRUST,34819748,"1,015,342.00"
,,,,,,,"36,696,056.57"
